[Event "*** Titled Tuesday Blitz"]
[Site "Chess.com"]
[Date "2020.05.12"]
[Round "3"]
[White "Juanovic"]
[Black "Ekka83"]
[Result "1/2-1/2"]
[WhiteElo "2167"]
[BlackElo "2364"]
[TimeControl "180+1"]
[EndTime "10:30:39 PDT"]
[Termination "Game drawn by agreement"]

1. e4 {[%clk 0:03:00.9]} 1... d5 {[%clk 0:02:58.7]} 2. exd5 {[%clk 0:03:00.9]}
2... Qxd5 {[%clk 0:02:59.6]} 3. d4 {[%clk 0:03:01.1]} 3... c6 {[%clk 0:02:58.7]}
4. Nc3 {[%clk 0:03:00.5]} 4... Qd6 {[%clk 0:02:58.1]} 5. Nge2 {[%clk 0:02:58.2]}
5... Nf6 {[%clk 0:02:57.6]} 6. Bf4 {[%clk 0:02:58.2]} 6... Qd8 {[%clk
0:02:56.5]} 7. g3 {[%clk 0:02:58.5]} 7... Bg4 {[%clk 0:02:56]} 8. Bg2 {[%clk
0:02:58.7]} 8... e6 {[%clk 0:02:56.4]} 9. h3 {[%clk 0:02:57.1]} 9... Bh5 {[%clk
0:02:56.2]} 10. Qd2 {[%clk 0:02:56.4]} 10... Be7 {[%clk 0:02:55.2]} 11. a3
{[%clk 0:02:55]} 11... Nd5 {[%clk 0:02:55]} 12. Nxd5 {[%clk 0:02:54.6]} 12...
cxd5 {[%clk 0:02:54.6]} 13. O-O {[%clk 0:02:50.7]} 13... Nc6 {[%clk 0:02:51.8]}
14. Rfe1 {[%clk 0:02:38]} 14... O-O {[%clk 0:02:46.5]} 15. Rac1 {[%clk
0:02:35.3]} 15... Rc8 {[%clk 0:02:45.7]} 16. c4 {[%clk 0:02:34.5]} 16... dxc4
{[%clk 0:02:42]} 17. Rxc4 {[%clk 0:02:35.4]} 17... Bf6 {[%clk 0:02:31.8]} 18. g4
{[%clk 0:02:28.7]} 18... Bg6 {[%clk 0:02:30.6]} 19. Rec1 {[%clk 0:02:29.3]}
19... Qb6 {[%clk 0:02:20.1]} 20. Be3 {[%clk 0:02:23.8]} 20... Qb5 {[%clk
0:02:17]} 21. a4 {[%clk 0:02:21.4]} 21... Qb3 {[%clk 0:01:55.7]} 22. R1c3 {[%clk
0:02:16.7]} 22... Qa2 {[%clk 0:01:18.4]} 23. Nf4 {[%clk 0:02:16.2]} 23... Rfd8
{[%clk 0:00:45.6]} 24. Bxc6 {[%clk 0:02:12.4]} 24... Rxc6 {[%clk 0:00:44]} 25.
Rxc6 {[%clk 0:02:09.8]} 25... bxc6 {[%clk 0:00:44.9]} 26. Nxg6 {[%clk
0:02:09.7]} 26... hxg6 {[%clk 0:00:44.2]} 27. g5 {[%clk 0:02:01.2]} 27... Bxd4
{[%clk 0:00:41.3]} 28. Bxd4 {[%clk 0:01:58.1]} 28... e5 {[%clk 0:00:40.6]} 29.
Rd3 {[%clk 0:01:54]} 29... Qb1+ {[%clk 0:00:40]} 30. Kg2 {[%clk 0:01:50.4]}
30... c5 {[%clk 0:00:39.8]} 31. Qd1 {[%clk 0:01:44.6]} 31... Qxd1 {[%clk
0:00:38.6]} 32. Rxd1 {[%clk 0:01:44.5]} 32... exd4 {[%clk 0:00:29.9]} 33. Rc1
{[%clk 0:01:44.7]} 33... Rd5 {[%clk 0:00:28.3]} 34. h4 {[%clk 0:01:42.6]} 34...
f5 {[%clk 0:00:26.9]} 35. Kf3 {[%clk 0:01:41.5]} 35... Kf7 {[%clk 0:00:26.7]}
36. Ke2 {[%clk 0:01:41.7]} 36... Ke6 {[%clk 0:00:22.7]} 37. f4 {[%clk
0:01:41.9]} 37... Kd6 {[%clk 0:00:22.7]} 38. Kd3 {[%clk 0:01:42.3]} 38... a5
{[%clk 0:00:20.9]} 39. b3 {[%clk 0:01:42.3]} 39... Kc6 {[%clk 0:00:21]} 40. Re1
{[%clk 0:01:41.7]} 40... Rd6 {[%clk 0:00:20.2]} 41. Re5 {[%clk 0:01:41]} 41...
Kb6 {[%clk 0:00:18.1]} 42. Re7 {[%clk 0:01:38.6]} 42... Kc6 {[%clk 0:00:17.4]}
43. Rxg7 {[%clk 0:01:36.6]} 43... Re6 {[%clk 0:00:16.9]} 44. Kc4 {[%clk
0:01:34.1]} 44... Kd6 {[%clk 0:00:17]} 45. Ra7 {[%clk 0:01:31.9]} 45... Re4
{[%clk 0:00:12.2]} 46. Ra6+ {[%clk 0:01:31.7]} 46... Kc7 {[%clk 0:00:12.2]} 47.
Kxc5 {[%clk 0:01:31.7]} 47... d3 {[%clk 0:00:12]} 48. Rd6 {[%clk 0:01:30.7]}
48... Rxf4 {[%clk 0:00:12.3]} 49. Rxd3 {[%clk 0:01:30.7]} 49... Rxh4 {[%clk
0:00:12.6]} 50. Re3 {[%clk 0:01:26.8]} 50... Rg4 {[%clk 0:00:11.6]} 51. Re7+
{[%clk 0:01:26.7]} 51... Kd8 {[%clk 0:00:11.7]} 52. Ra7 {[%clk 0:01:25.7]} 52...
Rxg5 {[%clk 0:00:12.6]} 53. Kd4 {[%clk 0:01:23.4]} 53... Rg4+ {[%clk 0:00:12]}
54. Ke3 {[%clk 0:01:23.3]} 54... Rb4 {[%clk 0:00:11.3]} 55. Rxa5 {[%clk
0:01:23.4]} 55... Rxb3+ {[%clk 0:00:10.8]} 56. Kf4 {[%clk 0:01:23.6]} 56... Ke7
{[%clk 0:00:11]} 57. Ra6 {[%clk 0:01:23.1]} 57... Rb4+ {[%clk 0:00:09.1]} 58.
Kf3 {[%clk 0:01:22]} 58... Rg4 {[%clk 0:00:10]} 59. a5 {[%clk 0:01:21.3]} 59...
Kd7 {[%clk 0:00:10.1]} 60. Ra8 {[%clk 0:01:20.3]} 60... Kc6 {[%clk 0:00:10.3]}
61. a6 {[%clk 0:01:17.6]} 61... Kb6 {[%clk 0:00:10.1]} 62. a7 {[%clk 0:01:12.1]}
62... Kb7 {[%clk 0:00:08.8]} 63. Rb8+ {[%clk 0:01:10.7]} 63... Kxa7 {[%clk
0:00:09.1]} 64. Rb1 {[%clk 0:01:11.3]} 64... Ka6 {[%clk 0:00:08.9]} 65. Rb2
{[%clk 0:01:11.4]} 65... Ka5 {[%clk 0:00:09.1]} 66. Rb8 {[%clk 0:01:10.6]} 66...
Rb4 {[%clk 0:00:08.6]} 67. Rg8 {[%clk 0:01:10]} 67... Rb6 {[%clk 0:00:08.1]} 68.
Kf4 {[%clk 0:01:09.4]} 68... Kb4 {[%clk 0:00:07.8]} 69. Kg5 {[%clk 0:01:09.5]}
69... Kc4 {[%clk 0:00:07.8]} 70. Rd8 {[%clk 0:01:09.5]} 70... Rc6 {[%clk
0:00:07]} 71. Rd1 {[%clk 0:01:08.8]} 71... Kc5 {[%clk 0:00:06.4]} 72. Rd2 {[%clk
0:01:07.6]} 72... Rd6 {[%clk 0:00:06.3]} 73. Rc2+ {[%clk 0:01:05.9]} 73... Kd5
{[%clk 0:00:06.3]} 74. Re2 {[%clk 0:01:04]} 74... Re6 {[%clk 0:00:05.7]} 75.
Rd2+ {[%clk 0:01:02.9]} 75... Kc4 {[%clk 0:00:06]} 76. Ra2 {[%clk 0:01:03.1]}
76... Kd3 {[%clk 0:00:05.7]} 77. Ra3+ {[%clk 0:01:02.3]} 77... Ke2 {[%clk
0:00:05.8]} 78. Ra2+ {[%clk 0:01:02.6]} 78... Kf3 {[%clk 0:00:05.9]} 79. Ra3+
{[%clk 0:01:02.9]} 79... Re3 {[%clk 0:00:05.9]} 80. Ra4 {[%clk 0:01:02]} 80...
Re4 {[%clk 0:00:04.8]} 81. Ra3+ {[%clk 0:01:02.2]} 81... Re3 {[%clk 0:00:05.1]}
82. Ra6 {[%clk 0:01:02.4]} 82... Kf2 {[%clk 0:00:03.6]} 83. Rxg6 {[%clk
0:01:02]} 83... f4 {[%clk 0:00:03.7]} 84. Rf6 {[%clk 0:01:02.4]} 84... f3 {[%clk
0:00:03.4]} 85. Kg4 {[%clk 0:01:02.3]} 85... Ra3 {[%clk 0:00:03.2]} 86. Re6
{[%clk 0:01:00.5]} 86... Rb3 {[%clk 0:00:03.4]} 87. Rf6 {[%clk 0:01:00.3]} 87...
Rb4+ {[%clk 0:00:02.9]} 88. Kh3 {[%clk 0:00:59.8]} 88... Rc4 {[%clk 0:00:02]}
89. Rf5 {[%clk 0:00:58.3]} 89... Re4 {[%clk 0:00:02.1]} 90. Rf6 {[%clk
0:00:58.1]} 90... Re8 {[%clk 0:00:02]} 91. Ra6 {[%clk 0:00:55.9]} 91... Rg8
{[%clk 0:00:01.7]} 92. Ra2+ {[%clk 0:00:55.2]} 92... Ke3 {[%clk 0:00:02.1]} 93.
Ra3+ {[%clk 0:00:53.2]} 93... Ke2 {[%clk 0:00:02.8]} 94. Ra2+ {[%clk 0:00:53.3]}
94... Kd1 {[%clk 0:00:03.7]} 95. Ra1+ {[%clk 0:00:53.3]} 95... Kd2 {[%clk
0:00:03.6]} 96. Ra2+ {[%clk 0:00:53.5]} 96... Kc3 {[%clk 0:00:03.7]} 97. Ra3+
{[%clk 0:00:53.7]} 97... Kd2 {[%clk 0:00:04.6]} 98. Rxf3 {[%clk 0:00:54]} 98...
Ke2 {[%clk 0:00:05.5]} 99. Rf7 {[%clk 0:00:54.1]} 99... Ke3 {[%clk 0:00:05]}
100. Kh4 {[%clk 0:00:53.9]} 100... Rh8+ {[%clk 0:00:05]} 101. Kg5 {[%clk
0:00:54]} 101... Rg8+ {[%clk 0:00:04.4]} 1/2-1/2

[Event "*** Titled Tuesday Blitz"]
[Site "Chess.com"]
[Date "2020.05.12"]
[Round "3"]
[White "Gergo85"]
[Black "CarlosAlbornoz"]
[Result "1-0"]
[WhiteElo "2506"]
[BlackElo "2705"]
[TimeControl "180+1"]
[EndTime "10:30:47 PDT"]
[Termination "Gergo85 won on time"]

1. e4 {[%clk 0:03:00.9]} 1... c5 {[%clk 0:03:00.1]} 2. Nf3 {[%clk 0:03:00.7]}
2... d6 {[%clk 0:03:00.3]} 3. Bb5+ {[%clk 0:02:59.8]} 3... Nc6 {[%clk
0:02:59.1]} 4. Bxc6+ {[%clk 0:02:58.3]} 4... bxc6 {[%clk 0:02:59.2]} 5. O-O
{[%clk 0:02:58.8]} 5... Bg4 {[%clk 0:02:59.3]} 6. h3 {[%clk 0:02:58.3]} 6... Bh5
{[%clk 0:02:59.3]} 7. Re1 {[%clk 0:02:58.8]} 7... Nf6 {[%clk 0:02:58.4]} 8. e5
{[%clk 0:02:58.8]} 8... dxe5 {[%clk 0:02:50.2]} 9. Rxe5 {[%clk 0:02:35.1]} 9...
e6 {[%clk 0:02:49.6]} 10. d3 {[%clk 0:02:35.5]} 10... Bd6 {[%clk 0:02:49.1]} 11.
Re1 {[%clk 0:02:36]} 11... O-O {[%clk 0:02:45.5]} 12. Nbd2 {[%clk 0:02:36.5]}
12... Bc7 {[%clk 0:02:41.4]} 13. Nc4 {[%clk 0:02:36.6]} 13... Qd5 {[%clk
0:02:39.2]} 14. Qe2 {[%clk 0:02:28.4]} 14... e5 {[%clk 0:02:20.5]} 15. g4 {[%clk
0:01:34.4]} 15... Bg6 {[%clk 0:02:11]} 16. Nfxe5 {[%clk 0:01:23.7]} 16... Rfe8
{[%clk 0:02:03.6]} 17. f4 {[%clk 0:01:24]} 17... Nd7 {[%clk 0:01:54.8]} 18. Qf1
{[%clk 0:00:20.4]} 18... f6 {[%clk 0:01:36]} 19. Nxg6 {[%clk 0:00:15.1]} 19...
hxg6 {[%clk 0:01:29.4]} 20. Bd2 {[%clk 0:00:13.8]} 20... Nf8 {[%clk 0:01:13.2]}
21. Qg2 {[%clk 0:00:13.9]} 21... Ne6 {[%clk 0:01:02.7]} 22. Qxd5 {[%clk
0:00:05.4]} 22... cxd5 {[%clk 0:01:03.6]} 23. Na3 {[%clk 0:00:05.4]} 23... Nxf4
{[%clk 0:00:57]} 24. Bxf4 {[%clk 0:00:05.5]} 24... Bxf4 {[%clk 0:00:57.9]} 25.
Kf2 {[%clk 0:00:05.7]} 25... Be5 {[%clk 0:00:54]} 26. c3 {[%clk 0:00:05.6]}
26... Rab8 {[%clk 0:00:50.4]} 27. Rab1 {[%clk 0:00:06.1]} 27... Re7 {[%clk
0:00:39.8]} 28. Nc2 {[%clk 0:00:06.6]} 28... Reb7 {[%clk 0:00:38.5]} 29. d4
{[%clk 0:00:04.6]} 29... Rxb2 {[%clk 0:00:30.1]} 30. Rxb2 {[%clk 0:00:04.1]}
30... Rxb2 {[%clk 0:00:30.1]} 31. Re2 {[%clk 0:00:04.5]} 31... cxd4 {[%clk
0:00:28.5]} 32. cxd4 {[%clk 0:00:05.4]} 32... Bd6 {[%clk 0:00:25.5]} 33. Ne3
{[%clk 0:00:06]} 33... Rb5 {[%clk 0:00:23.5]} 34. a4 {[%clk 0:00:06.5]} 34...
Ra5 {[%clk 0:00:23.4]} 35. Ra2 {[%clk 0:00:06.8]} 35... Bf4 {[%clk 0:00:23.2]}
36. Nc2 {[%clk 0:00:06.3]} 36... Ra6 {[%clk 0:00:18.3]} 37. Nb4 {[%clk
0:00:06.5]} 37... Rd6 {[%clk 0:00:18.3]} 38. a5 {[%clk 0:00:06.7]} 38... Rd7
{[%clk 0:00:17.2]} 39. Rc2 {[%clk 0:00:06.9]} 39... f5 {[%clk 0:00:13.9]} 40.
Kf3 {[%clk 0:00:05.8]} 40... Bg5 {[%clk 0:00:11.5]} 41. Rc6 {[%clk 0:00:05.4]}
41... Bf6 {[%clk 0:00:10.7]} 42. Rc5 {[%clk 0:00:04.1]} 42... Bxd4 {[%clk
0:00:10.4]} 43. Rxd5 {[%clk 0:00:04.6]} 43... Rxd5 {[%clk 0:00:10.1]} 44. Nxd5
{[%clk 0:00:05.5]} 44... Bc5 {[%clk 0:00:09.9]} 45. Nc7 {[%clk 0:00:04.2]} 45...
Kf7 {[%clk 0:00:08.9]} 46. Nb5 {[%clk 0:00:04]} 46... Kf6 {[%clk 0:00:07.5]} 47.
Kf4 {[%clk 0:00:04.4]} 47... g5+ {[%clk 0:00:07.4]} 48. Kf3 {[%clk 0:00:04.9]}
48... f4 {[%clk 0:00:08.3]} 49. Nc3 {[%clk 0:00:03.6]} 49... Ke5 {[%clk
0:00:08.7]} 50. Ne4 {[%clk 0:00:04.1]} 50... Be7 {[%clk 0:00:09.2]} 51. Nc3
{[%clk 0:00:04]} 51... a6 {[%clk 0:00:09.2]} 52. Na4 {[%clk 0:00:04]} 52... Kd4
{[%clk 0:00:09.3]} 53. Nb6 {[%clk 0:00:04.9]} 53... Bd8 {[%clk 0:00:08.6]} 54.
Nd7 {[%clk 0:00:04.8]} 54... Bxa5 {[%clk 0:00:08.6]} 55. Nf8 {[%clk 0:00:05.4]}
55... Ke5 {[%clk 0:00:06.5]} 56. Nd7+ {[%clk 0:00:05.9]} 56... Kd6 {[%clk
0:00:05.8]} 57. Nb8 {[%clk 0:00:06.3]} 57... Bc3 {[%clk 0:00:03.8]} 58. Nxa6
{[%clk 0:00:06.7]} 58... Bd2 {[%clk 0:00:03.4]} 59. Nb8 {[%clk 0:00:05.7]} 59...
Kc7 {[%clk 0:00:03.2]} 60. Na6+ {[%clk 0:00:06.3]} 60... Kb6 {[%clk 0:00:03.8]}
61. Nb8 {[%clk 0:00:06.5]} 61... Kc7 {[%clk 0:00:04.4]} 62. Na6+ {[%clk
0:00:07.1]} 62... Kd6 {[%clk 0:00:05.3]} 63. Ke2 {[%clk 0:00:06.3]} 63... Be3
{[%clk 0:00:05.4]} 64. Nb4 {[%clk 0:00:05.4]} 64... Kc5 {[%clk 0:00:05.6]} 65.
Nd3+ {[%clk 0:00:05.5]} 65... Kd4 {[%clk 0:00:06.5]} 66. Ne1 {[%clk 0:00:04.9]}
66... Ke4 {[%clk 0:00:06.5]} 67. Nf3 {[%clk 0:00:05.8]} 67... Bc5 {[%clk
0:00:05.9]} 68. Nxg5+ {[%clk 0:00:06.4]} 68... Ke5 {[%clk 0:00:06.2]} 69. Nf3+
{[%clk 0:00:07.3]} 69... Ke4 {[%clk 0:00:05.6]} 70. Ng5+ {[%clk 0:00:07.2]}
70... Ke5 {[%clk 0:00:05]} 71. Kf3 {[%clk 0:00:07.9]} 71... Be3 {[%clk
0:00:05.2]} 72. Ne4 {[%clk 0:00:08.8]} 72... Ke6 {[%clk 0:00:04.3]} 73. Nc3
{[%clk 0:00:09.2]} 73... Ke5 {[%clk 0:00:04.3]} 74. Ne2 {[%clk 0:00:09.8]} 74...
Bd2 {[%clk 0:00:04.2]} 75. Kf2 {[%clk 0:00:08.9]} 75... Be3+ {[%clk 0:00:04.1]}
76. Kf3 {[%clk 0:00:09.1]} 76... Bd2 {[%clk 0:00:04.4]} 77. h4 {[%clk
0:00:09.8]} 77... Be3 {[%clk 0:00:04.1]} 78. h5 {[%clk 0:00:10.3]} 78... Bd2
{[%clk 0:00:04.3]} 79. Ng1 {[%clk 0:00:10.8]} 79... Be3 {[%clk 0:00:04.2]} 80.
Nh3 {[%clk 0:00:11.4]} 80... Bd2 {[%clk 0:00:04.4]} 81. Ng5 {[%clk 0:00:11.9]}
81... Be3 {[%clk 0:00:04.1]} 82. Ne4 {[%clk 0:00:12.4]} 82... Bc1 {[%clk
0:00:03.6]} 83. Nc5 {[%clk 0:00:12.3]} 83... Be3 {[%clk 0:00:03.4]} 84. Nd3+
{[%clk 0:00:12.8]} 84... Kf6 {[%clk 0:00:03.2]} 85. Nxf4 {[%clk 0:00:13.2]} 1-0

[Event "*** Titled Tuesday Blitz"]
[Site "Chess.com"]
[Date "2020.05.12"]
[Round "3"]
[White "katchesskat"]
[Black "LuckSlayeer"]
[Result "1-0"]
[WhiteElo "2250"]
[BlackElo "2484"]
[TimeControl "180+1"]
[EndTime "10:30:48 PDT"]
[Termination "katchesskat won by resignation"]

1. c4 {[%clk 0:03:00.9]} 1... Nf6 {[%clk 0:02:59.4]} 2. e3 {[%clk 0:03:00.4]}
2... d6 {[%clk 0:02:52.1]} 3. Qc2 {[%clk 0:02:59.9]} 3... c5 {[%clk 0:02:47.9]}
4. Nf3 {[%clk 0:02:58.9]} 4... Nc6 {[%clk 0:02:47.2]} 5. a3 {[%clk 0:02:58.6]}
5... g6 {[%clk 0:02:47]} 6. d3 {[%clk 0:02:55.8]} 6... Bg7 {[%clk 0:02:47]} 7.
Nbd2 {[%clk 0:02:56.5]} 7... O-O {[%clk 0:02:47.2]} 8. Rb1 {[%clk 0:02:57.1]}
8... b6 {[%clk 0:02:37.2]} 9. b4 {[%clk 0:02:56.4]} 9... a5 {[%clk 0:02:35.6]}
10. b5 {[%clk 0:02:56.2]} 10... Nb8 {[%clk 0:02:35.1]} 11. Bb2 {[%clk
0:02:55.7]} 11... e5 {[%clk 0:02:25.6]} 12. Be2 {[%clk 0:02:54.8]} 12... Nbd7
{[%clk 0:02:25.1]} 13. O-O {[%clk 0:02:54.2]} 13... Re8 {[%clk 0:02:25.5]} 14.
Rfe1 {[%clk 0:02:54.5]} 14... Nf8 {[%clk 0:02:25.7]} 15. h3 {[%clk 0:02:54.2]}
15... h5 {[%clk 0:02:24.4]} 16. Ng5 {[%clk 0:02:46]} 16... Ne6 {[%clk 0:02:20]}
17. Nxe6 {[%clk 0:02:42.1]} 17... Bxe6 {[%clk 0:02:18.6]} 18. Bf3 {[%clk
0:02:42.5]} 18... Rb8 {[%clk 0:02:13.1]} 19. Rbd1 {[%clk 0:02:34.5]} 19... Bf5
{[%clk 0:02:07.7]} 20. Bd5 {[%clk 0:02:29.5]} 20... Nxd5 {[%clk 0:01:59]} 21.
cxd5 {[%clk 0:02:30.4]} 21... Bd7 {[%clk 0:01:15.9]} 22. a4 {[%clk 0:02:26.8]}
22... f5 {[%clk 0:01:14.3]} 23. Nc4 {[%clk 0:02:21.5]} 23... Qe7 {[%clk
0:01:09.5]} 24. f4 {[%clk 0:02:08.5]} 24... Bc8 {[%clk 0:00:38.2]} 25. fxe5
{[%clk 0:02:06.1]} 25... dxe5 {[%clk 0:00:28.9]} 26. Qf2 {[%clk 0:01:14.1]}
26... h4 {[%clk 0:00:08.3]} 27. Re2 {[%clk 0:01:10.5]} 27... Qg5 {[%clk
0:00:07.3]} 28. Kh1 {[%clk 0:00:53.3]} 28... Bb7 {[%clk 0:00:07.1]} 29. e4
{[%clk 0:00:49.5]} 29... f4 {[%clk 0:00:05.3]} 30. Nxb6 {[%clk 0:00:45.7]} 30...
Rbd8 {[%clk 0:00:02.6]} 31. Nc4 {[%clk 0:00:43.8]} 31... Bc8 {[%clk 0:00:02.3]}
32. Qf3 {[%clk 0:00:39.1]} 32... Qe7 {[%clk 0:00:02.4]} 33. Nd2 {[%clk
0:00:21.8]} 33... g5 {[%clk 0:00:02.9]} 34. Qh5 {[%clk 0:00:20.4]} 34... g4
{[%clk 0:00:03.4]} 35. hxg4 {[%clk 0:00:17.9]} 35... Rd6 {[%clk 0:00:04.1]} 36.
Nf3 {[%clk 0:00:17.6]} 36... Rh6 {[%clk 0:00:04.3]} 37. Qg5 {[%clk 0:00:17.2]}
37... Qxg5 {[%clk 0:00:04.4]} 38. Nxg5 {[%clk 0:00:17.1]} 38... Bxg4 {[%clk
0:00:05.1]} 39. Nf3 {[%clk 0:00:16.1]} 39... h3 {[%clk 0:00:05.6]} 40. Kg1
{[%clk 0:00:16.1]} 40... hxg2 {[%clk 0:00:06]} 41. Kxg2 {[%clk 0:00:16.4]} 41...
Rh3 {[%clk 0:00:06.3]} 42. Rf1 {[%clk 0:00:16.1]} 42... Rg3+ {[%clk 0:00:06.4]}
43. Kh2 {[%clk 0:00:14.5]} 43... Bxf3 {[%clk 0:00:06.9]} 44. Ref2 {[%clk
0:00:13.7]} 44... Bg4 {[%clk 0:00:07.4]} 45. d6 {[%clk 0:00:13.9]} 45... Bf6
{[%clk 0:00:07.1]} 46. Rg2 {[%clk 0:00:14.3]} 46... Rxg2+ {[%clk 0:00:06.9]} 47.
Kxg2 {[%clk 0:00:15.2]} 47... Kf7 {[%clk 0:00:07.5]} 48. Rg1 {[%clk 0:00:15.6]}
48... Ke6 {[%clk 0:00:07.8]} 49. Kf2 {[%clk 0:00:16.1]} 49... Bh5 {[%clk
0:00:06.5]} 50. Rh1 {[%clk 0:00:16.6]} 50... Bf7 {[%clk 0:00:06.2]} 51. Rh6
{[%clk 0:00:16.7]} 51... Rg8 {[%clk 0:00:04.8]} 52. d7 {[%clk 0:00:16.8]} 52...
Rg6 {[%clk 0:00:05.2]} 53. Rh7 {[%clk 0:00:16.3]} 53... Rg7 {[%clk 0:00:03.8]}
54. Rh8 {[%clk 0:00:16.1]} 54... Kxd7 {[%clk 0:00:03.7]} 55. Ra8 {[%clk
0:00:15.5]} 55... Bd8 {[%clk 0:00:04]} 56. Ra7+ {[%clk 0:00:15.7]} 56... Ke8
{[%clk 0:00:04.5]} 57. b6 {[%clk 0:00:16.2]} 57... Bxb6 {[%clk 0:00:04.5]} 58.
Ra8+ {[%clk 0:00:16.7]} 58... Bd8 {[%clk 0:00:05]} 59. Bxe5 {[%clk 0:00:17.3]}
59... Rg4 {[%clk 0:00:04.7]} 60. Bf6 {[%clk 0:00:17.4]} 60... Kd7 {[%clk
0:00:04.1]} 61. Rxd8+ {[%clk 0:00:18.3]} 61... Ke6 {[%clk 0:00:04.6]} 62. Bc3
{[%clk 0:00:16.8]} 62... Rh4 {[%clk 0:00:04.4]} 63. Kf3 {[%clk 0:00:16.8]} 63...
Bh5+ {[%clk 0:00:04.1]} 64. Kg2 {[%clk 0:00:16.9]} 64... f3+ {[%clk 0:00:04.6]}
65. Kg3 {[%clk 0:00:16]} 65... Rg4+ {[%clk 0:00:05.1]} 66. Kf2 {[%clk
0:00:15.7]} 66... Rg2+ {[%clk 0:00:05.5]} 67. Kf1 {[%clk 0:00:16.1]} 67... Rc2
{[%clk 0:00:04.4]} 68. Rh8 {[%clk 0:00:16]} 68... Bg4 {[%clk 0:00:04.4]} 69.
Rh6+ {[%clk 0:00:15.6]} 69... Kd7 {[%clk 0:00:04.1]} 70. Bxa5 {[%clk 0:00:16.3]}
70... f2 {[%clk 0:00:03.6]} 71. Rh7+ {[%clk 0:00:15.7]} 71... Kc8 {[%clk
0:00:03.5]} 72. Kg2 {[%clk 0:00:15.5]} 72... Be2 {[%clk 0:00:02.6]} 73. Rf7
{[%clk 0:00:15.6]} 73... f1=Q+ {[%clk 0:00:02.4]} 74. Rxf1 {[%clk 0:00:15.7]}
74... Bxf1+ {[%clk 0:00:03.1]} 75. Kxf1 {[%clk 0:00:16.6]} 75... Ra2 {[%clk
0:00:02.7]} 76. Bb6 {[%clk 0:00:16.1]} 76... Rxa4 {[%clk 0:00:02.9]} 77. Bxc5
{[%clk 0:00:16.3]} 77... Kc7 {[%clk 0:00:03.6]} 78. Ke2 {[%clk 0:00:16.6]} 78...
Kc6 {[%clk 0:00:04.3]} 79. d4 {[%clk 0:00:16.3]} 79... Ra2+ {[%clk 0:00:04.8]}
80. Ke3 {[%clk 0:00:16.5]} 80... Ra3+ {[%clk 0:00:05.5]} 81. Kf4 {[%clk
0:00:16.9]} 81... Kd7 {[%clk 0:00:06.1]} 82. Ke5 {[%clk 0:00:17.2]} 82... Ra5
{[%clk 0:00:05.3]} 83. Kd5 {[%clk 0:00:16.7]} 83... Rb5 {[%clk 0:00:05.3]} 84.
e5 {[%clk 0:00:16.9]} 84... Ra5 {[%clk 0:00:05.7]} 85. e6+ {[%clk 0:00:16.9]}
85... Ke8 {[%clk 0:00:06.4]} 86. Kd6 {[%clk 0:00:16.9]} 86... Ra6+ {[%clk
0:00:06.7]} 87. Ke5 {[%clk 0:00:16.8]} 87... Ra5 {[%clk 0:00:06.3]} 88. Kd5
{[%clk 0:00:16.9]} 88... Ra6 {[%clk 0:00:06.7]} 89. Ke5 {[%clk 0:00:16]} 89...
Ra5 {[%clk 0:00:07.1]} 90. Ke4 {[%clk 0:00:15.7]} 90... Ra6 {[%clk 0:00:07]} 91.
d5 {[%clk 0:00:15.7]} 91... Ra5 {[%clk 0:00:07.3]} 92. Bd6 {[%clk 0:00:15.8]}
92... Ra6 {[%clk 0:00:07.4]} 93. Ke5 {[%clk 0:00:15.9]} 93... Ra5 {[%clk
0:00:07.4]} 94. Bc7 {[%clk 0:00:15.8]} 94... Rb5 {[%clk 0:00:07]} 95. Kd6 {[%clk
0:00:14.6]} 95... Ra5 {[%clk 0:00:07]} 96. Bxa5 {[%clk 0:00:13.7]} 1-0